bitfinex-derivatives/quotes_BTCF0:USTF0_20241104
["timestamp","ask_amount","ask_price","bid_price","bid_amount"]
[1730699042401,0.12060044,68919.0,68916.0,0.073599]
[1730699042593,0.0935511,68919.0,68916.0,0.074599]
[1730699042898,0.02804943,68918.0,68916.0,0.074599]
[1730699043100,0.1182287,68919.0,68916.0,0.074599]
[1730699043295,0.02804943,68918.0,68916.0,0.074599]
[1730699043491,0.02804943,68918.0,68916.0,0.073599]
[1730699044203,0.1182287,68919.0,68918.0,0.001]
[1730699044400,0.1172287,68919.0,68918.0,0.001]
[1730699044905,0.1162287,68919.0,68917.0,0.04354828]
[1730699045106,0.001,68918.0,68917.0,0.04354828]
[1730699046709,0.1162287,68919.0,68917.0,0.11614628]
[1730699046909,0.1172287,68919.0,68918.0,0.001]
[1730699047410,0.1182287,68919.0,68918.0,0.002]
[1730699047610,0.1172287,68919.0,68918.0,0.001]
[1730699047904,0.1172287,68919.0,68917.0,0.11814628]
[1730699048412,0.0246776,68919.0,68918.0,0.0915511]
[1730699048602,0.002,68919.0,68918.0,0.1661481]
[1730699048992,0.001,68919.0,68918.0,0.1651481]
[1730699049197,0.002,68919.0,68918.0,0.1651481]
[1730699049800,0.002,68919.0,68918.0,0.31479271]
[1730699050113,0.001,68919.0,68918.0,0.1641481]
[1730699050300,0.002,68919.0,68918.0,0.1641481]
[1730699050502,0.001,68919.0,68918.0,0.1641481]
[1730699050704,0.002,68919.0,68918.0,0.25950259]
[1730699050905,0.001,68919.0,68918.0,0.25950259]
[1730699051099,0.002,68919.0,68918.0,0.26050259]
[1730699051306,0.002,68919.0,68918.0,0.20242309]
[1730699051507,0.002,68919.0,68918.0,0.26050225]
[1730699058610,0.002,68919.0,68918.0,0.20242309]
[1730699059002,0.0935511,68919.0,68918.0,0.11087199]
[1730699059204,0.19419444,68919.0,68918.0,0.11087199]
[1730699061315,0.19419487,68919.0,68918.0,0.11087199]
[1730699063410,0.19419487,68919.0,68918.0,0.03827499]
[1730699065021,0.1941963,68919.0,68918.0,0.03827499]
[1730699066018,0.19419644,68919.0,68918.0,0.03827499]
[1730699066210,0.1661471,68919.0,68918.0,0.08182842]
[1730699066410,0.1661471,68919.0,68918.0,0.03827499]
[1730699066610,0.1914046,68919.0,68918.0,0.08182842]
[1730699067207,0.1914046,68919.0,68918.0,0.03827499]
[1730699068012,0.2829557,68919.0,68918.0,0.03827499]
[1730699068211,0.3745068,68919.0,68918.0,0.03827499]
[1730699068409,0.3745068,68919.0,68904.0,0.3608]
[1730699068410,1.0064397,68919.0,68911.0,0.04355343]
[1730699068614,1.0064397,68919.0,68900.0,0.1]
[1730699068615,0.072605,68910.0,68909.0,0.04355343]
[1730699068812,0.2633961,68910.0,68909.0,0.04355343]
[1730699069626,0.2633961,68910.0,68903.0,0.13069116]
[1730699069627,0.072606,68909.0,68908.0,0.04355343]
[1730699069837,0.2590571,68909.0,68908.0,0.04355343]
[1730699070513,0.2590571,68909.0,68907.0,0.04355343]
[1730699070720,0.0915511,68908.0,68907.0,0.04355343]
[1730699071525,0.0915511,68908.0,68906.0,0.04355343]
[1730699071724,0.0915511,68907.0,68906.0,0.04355343]
[1730699072114,0.0915511,68907.0,68903.0,0.072612]
[1730699072317,0.001,68908.0,68903.0,0.072612]
[1730699072318,0.0915511,68904.0,68903.0,0.072612]
[1730699074222,0.0925511,68904.0,68903.0,0.072612]
[1730699074527,0.11852754,68904.0,68903.0,0.072612]
[1730699080029,0.21776754,68904.0,68903.0,0.072612]
[1730699088023,0.21776754,68904.0,68903.0,0.11608974]
[1730699088229,0.21776754,68904.0,68903.0,0.072612]
[1730699088734,0.072614,68902.0,68901.0,0.05807916]
[1730699088939,0.072614,68902.0,68900.0,0.14348656]
[1730699089238,0.1641661,68901.0,68900.0,0.1]
[1730699090138,0.2634061,68901.0,68900.0,0.1]
[1730699090335,0.1641661,68901.0,68900.0,0.1]
[1730699090523,0.2634061,68901.0,68900.0,0.1]
[1730699090725,0.2644061,68901.0,68900.0,0.1]
[1730699091432,0.1651661,68901.0,68900.0,0.1]
[1730699091742,0.2654061,68901.0,68900.0,0.172616]
[1730699093033,0.002,68901.0,68900.0,0.172616]
[1730699093237,0.002,68901.0,68900.0,0.2641671]
[1730699093238,0.10124,68901.0,68900.0,0.2641671]
[1730699093640,0.10124,68901.0,68900.0,0.172616]
[1730699094328,0.002,68901.0,68900.0,0.172616]
[1730699097540,0.002,68901.0,68900.0,0.3511886]
[1730699099040,0.002,68901.0,68900.0,0.27863606]
[1730699099540,0.002,68901.0,68900.0,0.27861705]
[1730699100038,0.002,68901.0,68900.0,0.63941705]
[1730699102644,0.002,68901.0,68900.0,0.71203084]
[1730699103438,0.002,68901.0,68900.0,0.63941705]
[1730699104136,0.002,68901.0,68900.0,0.533416]
[1730699107143,0.002,68901.0,68900.0,0.6249671]
[1730699107744,0.002,68901.0,68900.0,0.66853553]
[1730699107939,0.002,68901.0,68900.0,0.6249671]
[1730699108139,0.002,68901.0,68900.0,0.66853553]
[1730699110945,0.02452073,68910.0,68901.0,0.072615]
[1730699111134,0.02452073,68910.0,68909.0,0.05809124]
[1730699111536,0.09924,68915.0,68914.0,0.072601]
[1730699111746,0.072599,68916.0,68915.0,0.0726]
[1730699111948,0.2633901,68916.0,68915.0,0.1161513]
[1730699112449,0.09924,68916.0,68915.0,0.1641511]
[1730699112843,0.065,68918.0,68917.0,0.072598]
[1730699113044,0.065,68918.0,68917.0,0.1641491]
[1730699113349,0.065,68918.0,68917.0,0.072598]
[1730699113538,0.072598,68917.0,68916.0,0.04354603]
[1730699113840,0.072598,68917.0,68909.0,0.001]
[1730699113841,0.072601,68915.0,68913.0,0.11614703]
[1730699114042,0.1641521,68914.0,68913.0,0.11614703]
[1730699114446,0.0915511,68914.0,68912.0,0.04354603]
[1730699114641,0.0915511,68913.0,68909.0,0.04354603]
[1730699114838,0.1641561,68910.0,68908.0,0.04354603]
[1730699115146,0.0306,68909.0,68907.0,0.04354603]
[1730699115444,0.0306,68909.0,68908.0,0.04354603]
[1730699115747,0.072607,68908.0,68904.0,0.0580684]
[1730699116046,0.072607,68908.0,68907.0,0.04353578]
[1730699116435,0.072607,68908.0,68904.0,0.1306794]
[1730699116747,0.0304,68907.0,68904.0,0.1306794]
[1730699117645,0.0304,68907.0,68904.0,0.2222305]
[1730699118148,0.0314,68907.0,68904.0,0.2232305]
[1730699118845,0.0324,68907.0,68904.0,0.2242305]
[1730699120644,0.0324,68907.0,68904.0,0.1516195]
[1730699120835,0.05774018,68907.0,68905.0,0.07261]
[1730699121544,0.05774018,68907.0,68905.0,0.1306784]
[1730699122045,0.05774018,68907.0,68905.0,0.1316784]
[1730699122947,0.6165112,68906.0,68905.0,0.0590684]
[1730699123145,0.6165112,68906.0,68905.0,0.04555244]
[1730699123345,0.6165112,68906.0,68905.0,0.002]
[1730699123545,0.5249601,68906.0,68905.0,0.002]
[1730699123747,0.6165112,68906.0,68905.0,0.002]
[1730699124453,0.6175112,68906.0,68905.0,0.002]
[1730699124846,0.6185112,68906.0,68905.0,0.002]
[1730699129862,0.6515112,68906.0,68905.0,0.002]
[1730699130547,0.5599601,68906.0,68905.0,0.002]
[1730699130744,0.6592001,68906.0,68905.0,0.002]
[1730699131353,0.7507512,68906.0,68905.0,0.002]
[1730699135957,1.1861112,68906.0,68905.0,0.002]
[1730699136751,0.072615,68901.0,68900.0,0.1]
[1730699136960,0.072624,68892.0,68891.0,0.04354488]
[1730699137161,0.7157662,68892.0,68891.0,0.04354488]
[1730699137352,1.1512462,68892.0,68891.0,0.04354488]
[1730699137552,0.072625,68891.0,68890.0,0.00217705]
[1730699137753,0.572405,68891.0,68890.0,0.00217705]
[1730699138055,0.605505,68891.0,68890.0,0.00217705]
[1730699140265,0.607505,68891.0,68890.0,0.00217705]
[1730699140564,0.607505,68891.0,68870.0,0.0915511]
[1730699140565,0.907505,68891.0,68866.0,0.04354488]
[1730699140755,0.0915511,68867.0,68866.0,0.032]
[1730699140959,0.0915511,68870.0,68866.0,0.032]
[1730699141660,0.0992,68873.0,68869.0,0.0915511]
[1730699141855,0.0992,68873.0,68869.0,0.13509598]
[1730699142057,0.0992,68873.0,68871.0,0.072646]
[1730699142253,0.0992,68873.0,68872.0,0.0302]
[1730699142871,0.0992,68876.0,68872.0,0.102845]
[1730699143170,0.0915511,68877.0,68872.0,0.102845]
[1730699143171,0.0915511,68877.0,68872.0,0.0302]
[1730699143355,0.0992,68876.0,68873.0,0.0915511]
[1730699143766,0.3608,68879.0,68873.0,0.0915511]
[1730699143767,0.0992,68878.0,68873.0,0.0915511]
[1730699143957,0.0992,68878.0,68874.0,0.0318]
[1730699144154,0.001,68876.0,68875.0,0.072642]
[1730699144766,0.072642,68875.0,68874.0,0.0318]
[1730699146270,0.001,68876.0,68870.0,0.04354488]
[1730699146271,0.072646,68871.0,68870.0,0.04354488]
[1730699146471,0.072646,68871.0,68869.0,0.04354488]
[1730699146666,0.0915511,68869.0,68868.0,0.04354488]
[1730699146862,0.5249991,68869.0,68866.0,0.07554488]
[1730699147067,0.5249991,68869.0,68866.0,0.032]
[1730699147264,0.4523511,68869.0,68866.0,0.032]
[1730699148562,0.4533511,68869.0,68866.0,0.032]
[1730699148770,0.001,68869.0,68868.0,0.072649]
[1730699149072,0.002,68869.0,68868.0,0.072649]
[1730699149663,0.001,68869.0,68868.0,0.072649]
[1730699150271,0.002,68869.0,68868.0,0.072649]
[1730699150659,0.001,68869.0,68868.0,0.072649]
[1730699150857,0.002,68869.0,68868.0,0.072649]
[1730699152668,0.07265,68867.0,68866.0,0.032]
[1730699153074,0.0935511,68869.0,68867.0,0.07265]
[1730699153368,0.002,68869.0,68867.0,0.07265]
[1730699153578,0.002,68869.0,68866.0,0.1235511]
[1730699153766,0.001,68869.0,68868.0,0.072649]
[1730699154069,0.072647,68871.0,68868.0,0.072649]
[1730699154775,0.072647,68871.0,68866.0,0.1235511]
[1730699154970,0.072647,68871.0,68870.0,0.072647]
[1730699155270,0.1907911,68872.0,68866.0,0.1235511]
[1730699155471,0.0915511,68872.0,68871.0,0.072646]
[1730699157175,0.0925511,68872.0,68871.0,0.072646]
[1730699157583,0.1651961,68872.0,68871.0,0.072646]
[1730699158175,0.11430206,68872.0,68871.0,0.072646]
[1730699158377,0.11530206,68872.0,68871.0,0.072646]
[1730699159385,0.11430206,68872.0,68871.0,0.072646]
[1730699159587,0.04165706,68872.0,68870.0,0.07257481]
[1730699159886,0.072646,68871.0,68869.0,0.07257481]
[1730699160587,0.072646,68871.0,68870.0,0.14522181]
[1730699161086,0.072647,68870.0,68869.0,0.07257481]
[1730699161285,0.1641981,68870.0,68868.0,0.07257481]
[1730699161493,0.1641981,68870.0,68868.0,0.14522381]
[1730699161684,0.1641981,68870.0,68869.0,0.07257481]
[1730699162287,0.002,68871.0,68869.0,0.14522281]
[1730699162586,0.002,68871.0,68870.0,0.34359435]
[1730699162991,0.001,68871.0,68870.0,0.34359435]
[1730699163189,0.001,68871.0,68870.0,0.17946844]
[1730699163391,0.072646,68871.0,68870.0,0.25190381]
[1730699163591,0.072646,68871.0,68870.0,0.072647]
[1730699163884,0.073646,68871.0,68870.0,0.072647]
[1730699164495,0.074646,68871.0,68870.0,0.04346335]
[1730699164792,0.136346,68871.0,68869.0,0.04346335]
[1730699165396,0.136346,68871.0,68867.0,0.07265]
[1730699165585,0.0915511,68868.0,68867.0,0.07265]
[1730699166195,0.0915511,68868.0,68865.0,0.05795113]
[1730699166396,0.072651,68866.0,68863.0,0.05795113]
[1730699166599,0.0915511,68864.0,68861.0,0.072656]
[1730699166791,0.0915511,68864.0,68860.0,0.3608]
[1730699167093,0.0915511,68864.0,68862.0,0.072656]
[1730699167987,0.0925511,68864.0,68862.0,0.072656]
[1730699168695,0.0925511,68864.0,68855.0,0.09731568]
[1730699168696,0.072657,68861.0,68838.0,0.06354076]
[1730699168894,0.7216,68843.0,68824.0,0.3608]
[1730699169200,0.7216,68843.0,68834.0,0.072685]
[1730699169201,0.4523511,68835.0,68834.0,0.072685]
[1730699169503,0.3608,68835.0,68834.0,0.072685]
[1730699170191,0.072687,68833.0,68829.0,0.07269]
[1730699170394,0.3608,68835.0,68832.0,0.072687]
[1730699170595,0.3608,68835.0,68832.0,0.04347855]
[1730699170793,0.3608,68835.0,68831.0,0.04347855]
[1730699171095,0.3608,68835.0,68828.0,0.03]
[1730699171096,0.13968265,68832.0,68828.0,0.07347855]
[1730699171297,0.13968265,68832.0,68827.0,0.031]
[1730699171298,0.072692,68828.0,68827.0,0.07447855]
[1730699171495,0.3608,68829.0,68823.0,0.0456579]
[1730699171696,0.072695,68825.0,68823.0,0.00217935]
[1730699171905,0.13968265,68826.0,68823.0,0.00217935]
[1730699172205,0.072696,68824.0,68823.0,0.00217935]
[1730699173206,0.13968265,68826.0,68823.0,0.00217935]
[1730699173207,0.001,68826.0,68823.0,0.00217935]
[1730699173505,0.001,68826.0,68825.0,0.072695]
[1730699173802,0.3608,68829.0,68828.0,0.072692]
[1730699174301,0.3608,68836.0,68828.0,0.43588]
[1730699174503,0.3608,68842.0,68835.0,0.13968265]
[1730699174691,0.3608,68842.0,68841.0,0.25570353]
[1730699174895,0.3608,68842.0,68841.0,0.21236065]
[1730699175201,0.3608,68842.0,68841.0,0.11602067]
[1730699175389,0.3608,68842.0,68841.0,0.04334267]
[1730699175589,0.433477,68842.0,68841.0,0.04334267]
[1730699176294,0.072678,68841.0,68840.0,0.04334267]
[1730699176789,0.072678,68841.0,68831.0,0.3608]
[1730699176790,0.072678,68841.0,68839.0,0.04334267]
[1730699177395,0.072678,68841.0,68838.0,0.04334267]
[1730699178490,0.072678,68841.0,68837.0,0.11602467]
[1730699178699,0.072678,68841.0,68840.0,0.001]
[1730699179201,0.072679,68840.0,68839.0,0.001]
[1730699180105,0.072679,68840.0,68838.0,0.072681]
[1730699180303,0.072679,68840.0,68803.0,0.072718]
[1730699180304,0.072687,68832.0,68826.0,0.072693]
[1730699180510,0.3608,68831.0,68830.0,0.072689]
[1730699182702,0.36232,68839.0,68838.0,0.072681]
[1730699182907,0.007,68840.0,68839.0,0.07268]
[1730699183103,0.001,68840.0,68839.0,0.07268]
[1730699184106,0.002,68840.0,68839.0,0.07768]
[1730699184906,0.001,68840.0,68839.0,0.07768]
[1730699186104,0.002,68840.0,68839.0,0.08368]
[1730699186803,0.001,68840.0,68839.0,0.07768]
[1730699186999,0.006,68840.0,68839.0,0.07768]
[1730699187199,0.005,68840.0,68839.0,0.07268]
[1730699187603,0.01,68840.0,68839.0,0.07368]
[1730699191510,0.01,68840.0,68839.0,0.11702267]
[1730699192208,0.01,68840.0,68839.0,0.07368]
[1730699192611,0.01,68840.0,68839.0,0.11702267]
[1730699193110,0.01,68840.0,68839.0,0.07368]
[1730699193304,0.3708,68840.0,68839.0,0.07368]
[1730699194421,0.072696,68824.0,68816.0,0.072704]
[1730699194636,0.57317865,68824.0,68810.0,0.0617]
[1730699195114,0.57317865,68824.0,68817.0,0.072703]
[1730699195813,0.50048265,68824.0,68817.0,0.072703]
[1730699196013,0.072697,68823.0,68818.0,0.072702]
[1730699196216,0.072697,68823.0,68819.0,0.072701]
[1730699196423,0.072697,68823.0,68815.0,0.072705]
[1730699197211,0.072697,68823.0,68822.0,0.04]
[1730699198411,0.073697,68823.0,68822.0,0.046]
[1730699198707,0.073697,68823.0,68822.0,0.041]
[1730699198907,0.074697,68823.0,68822.0,0.044]
[1730699200424,0.510617,68823.0,68822.0,0.044]
[1730699200616,0.543317,68823.0,68822.0,0.044]
[1730699202222,0.107397,68823.0,68822.0,0.044]
[1730699204716,0.107397,68823.0,68822.0,0.08746547]
[1730699205216,0.074697,68823.0,68822.0,0.08746547]
[1730699205416,0.178697,68823.0,68822.0,0.044]
[1730699206117,0.074697,68823.0,68822.0,0.044]
[1730699210014,0.178697,68823.0,68822.0,0.044]
[1730699211223,0.074697,68823.0,68822.0,0.044]
[1730699211530,0.178697,68823.0,68822.0,0.044]
[1730699212318,0.074697,68823.0,68822.0,0.044]
[1730699212525,0.074697,68823.0,68822.0,0.08744819]
[1730699212730,0.074697,68823.0,68822.0,0.0874405]
[1730699213036,0.074697,68823.0,68822.0,0.044]
[1730699213334,0.074697,68823.0,68822.0,0.08744044]
[1730699213537,0.074697,68823.0,68822.0,0.044]
[1730699213832,0.0383176,68823.0,68822.0,0.044]
[1730699214819,0.17800025,68823.0,68822.0,0.08744466]
[1730699215632,0.17800025,68823.0,68822.0,0.044]
[1730699215830,0.17800025,68823.0,68822.0,0.08744466]
[1730699216031,0.002,68823.0,68822.0,0.116698]
[1730699216227,0.002,68823.0,68822.0,0.16015402]
[1730699216628,0.002,68823.0,68822.0,0.116698]
[1730699217829,0.001,68823.0,68822.0,0.25338065]
[1730699218028,0.001,68823.0,68822.0,0.117698]
[1730699218235,0.001,68823.0,68822.0,0.116698]
[1730699218930,0.002,68823.0,68822.0,0.116698]
[1730699219334,0.073697,68823.0,68822.0,0.039]
[1730699219635,0.074697,68823.0,68822.0,0.043]
[1730699221138,0.073697,68823.0,68822.0,0.039]
[1730699221540,0.074697,68823.0,68822.0,0.044]
[1730699222733,0.074697,68823.0,68822.0,0.039]
[1730699222937,0.072697,68823.0,68822.0,0.035]
[1730699223140,0.073697,68823.0,68822.0,0.035]
[1730699223931,0.073697,68823.0,68822.0,0.10751552]
[1730699224130,0.073697,68823.0,68822.0,0.035]
[1730699224342,0.073697,68823.0,68822.0,0.10751552]
[1730699224731,0.072697,68823.0,68822.0,0.13831552]
[1730699224932,0.072697,68823.0,68822.0,0.14231552]
[1730699225228,0.00140001,68828.0,68822.0,0.97156732]
[1730699225433,0.00217998,68837.0,68827.0,0.50048265]
[1730699225635,0.00217998,68837.0,68829.0,0.07265434]
[1730699225636,0.072689,68831.0,68829.0,0.07265434]
[1730699226131,0.072689,68831.0,68828.0,0.17844534]
[1730699226332,0.3608,68833.0,68830.0,0.072688]
[1730699226535,0.07486298,68837.0,68828.0,0.0331]
[1730699226743,0.00217998,68837.0,68836.0,0.072683]
[1730699227536,0.00217998,68837.0,68833.0,0.0332]
[1730699227727,0.072685,68835.0,68833.0,0.0332]
[1730699228133,0.13968265,68834.0,68829.0,0.005]
[1730699228330,0.3608,68832.0,68829.0,0.005]
[1730699228633,0.433488,68832.0,68829.0,0.005]
[1730699228941,0.433488,68832.0,68831.0,0.05807036]
[1730699229536,0.433488,68832.0,68830.0,0.05807036]
[1730699231156,0.433488,68832.0,68829.0,0.13576036]
[1730699231337,0.433488,68832.0,68831.0,0.001]
[1730699231644,0.3608,68832.0,68831.0,0.001]
[1730699231843,0.3608,68832.0,68831.0,0.073688]
[1730699232043,0.3608,68832.0,68831.0,0.072688]
[1730699232949,0.3618,68832.0,68831.0,0.072688]
[1730699233242,0.001,68832.0,68831.0,0.072688]
[1730699233630,0.001,68832.0,68831.0,0.508528]
[1730699233843,0.00217998,68837.0,68836.0,0.072683]
[1730699234646,0.00217998,68837.0,68836.0,0.102883]
[1730699235241,0.01117998,68837.0,68836.0,0.102883]
[1730699235441,0.01617998,68837.0,68836.0,0.103883]
[1730699236939,0.01617998,68837.0,68836.0,0.135783]
[1730699237345,0.00717998,68837.0,68836.0,0.135783]
[1730699237534,0.01317998,68837.0,68836.0,0.103883]
[1730699238245,0.01317998,68837.0,68836.0,0.14739514]
[1730699239140,0.01317998,68837.0,68836.0,0.103883]
[1730699244143,0.01317998,68837.0,68836.0,0.073683]
[1730699245143,0.08586198,68837.0,68836.0,0.073683]
[1730699247143,0.08586198,68837.0,68836.0,0.001]
[1730699250950,0.28450198,68837.0,68836.0,0.001]
[1730699251554,0.072687,68832.0,68823.0,0.04355435]
[1730699251749,0.072697,68823.0,68820.0,0.04355435]
[1730699251948,0.072697,68823.0,68819.0,0.04355435]
[1730699252248,0.072697,68823.0,68816.0,0.00217959]
[1730699252249,0.104997,68823.0,68818.0,0.04355435]
[1730699252939,0.571417,68823.0,68818.0,0.04355435]
[1730699253144,0.571417,68823.0,68822.0,0.041]
[1730699253347,0.572417,68823.0,68822.0,0.041]
[1730699253658,0.676857,68823.0,68822.0,0.045]
[1730699254856,0.240937,68823.0,68822.0,0.045]
[1730699255762,0.38061965,68823.0,68822.0,0.045]
[1730699256145,0.84114073,68823.0,68822.0,0.045]
[1730699258053,0.84114073,68823.0,68804.0,0.00217997]
[1730699258054,0.072711,68810.0,68804.0,0.00217997]
[1730699258257,1.03747365,68810.0,68804.0,0.00217997]
[1730699258559,0.93399365,68810.0,68804.0,0.00217997]
[1730699258764,1.03747365,68810.0,68804.0,0.00217997]
[1730699259152,1.47347365,68810.0,68804.0,0.00217997]
[1730699259457,1.47347365,68810.0,68809.0,0.0104]
[1730699259458,1.47447365,68810.0,68809.0,0.0104]
[1730699260059,1.47547365,68810.0,68809.0,0.0114]
[1730699260249,1.03947365,68810.0,68809.0,0.0114]
[1730699260453,0.07272,68801.0,68800.0,0.1]
[1730699260647,0.57320265,68801.0,68800.0,0.1]
[1730699260862,0.67808265,68801.0,68800.0,0.1]
[1730699262162,0.67808265,68801.0,68800.0,0.14339988]
[1730699262556,0.67908265,68801.0,68800.0,0.14339988]
[1730699262959,0.57420265,68801.0,68800.0,0.14339988]
[1730699263163,0.46568,68801.0,68800.0,0.1]
[1730699263360,0.32440995,68801.0,68800.0,0.172721]
[1730699263559,0.32640995,68801.0,68800.0,0.172721]
[1730699266862,0.32640995,68801.0,68800.0,0.21609759]
[1730699268167,0.32640995,68801.0,68800.0,0.172721]
[1730699268570,0.32640995,68801.0,68800.0,0.206021]
[1730699273770,0.50400995,68801.0,68800.0,0.206021]
[1730699274482,0.50400995,68801.0,68800.0,0.1]
[1730699279688,0.52866531,68801.0,68800.0,0.1]
[1730699280391,0.42378531,68801.0,68800.0,0.1]
[1730699280591,0.52866531,68801.0,68800.0,0.1]
[1730699282983,0.52870531,68801.0,68800.0,0.1]
[1730699283493,0.62043016,68801.0,68800.0,0.1]
[1730699285585,0.62043016,68801.0,68783.0,0.04337659]
[1730699285586,1.44819501,68801.0,68783.0,0.04337659]
[1730699285788,0.072738,68784.0,68783.0,0.0312]
[1730699285977,0.26938285,68784.0,68783.0,0.0312]
[1730699286185,0.7245297,68784.0,68772.0,0.04337659]
[1730699286380,0.7245297,68784.0,68756.0,0.06864658]
[1730699286381,0.45252485,68773.0,68756.0,0.06864658]
[1730699286580,0.45252485,68773.0,68756.0,0.13510144]
[1730699286581,0.09172485,68763.0,68756.0,0.13510144]
[1730699286780,0.45252485,68767.0,68759.0,0.09172485]
[1730699287086,0.10492,68766.0,68765.0,0.072758]
[1730699287489,0.45396485,68767.0,68765.0,0.072758]
[1730699287684,0.10492,68766.0,68765.0,0.072758]
[1730699288493,0.10592,68766.0,68765.0,0.072758]
[1730699289394,0.10692,68766.0,68765.0,0.072758]
[1730699290092,0.10596,68766.0,68765.0,0.072758]
[1730699290684,0.002,68766.0,68765.0,0.072758]
[1730699291093,0.106,68766.0,68765.0,0.072758]
[1730699292090,0.104,68766.0,68765.0,0.18019254]
[1730699293186,0.104,68766.0,68765.0,0.25253236]
[1730699293603,0.104,68766.0,68765.0,0.14509782]
[1730699294504,0.435076,68767.0,68765.0,0.14509782]
[1730699294701,0.537556,68767.0,68765.0,0.14509782]
[1730699295203,0.537556,68767.0,68766.0,0.072757]
[1730699295401,0.3608,68767.0,68766.0,0.072757]
[1730699295606,0.3608,68767.0,68766.0,0.14509682]
[1730699295789,0.3608,68773.0,68772.0,0.072751]
[1730699296602,0.3608,68773.0,68772.0,0.135651]
[1730699297002,0.3608,68773.0,68772.0,0.20796759]
[1730699297505,0.3618,68773.0,68772.0,0.135651]
[1730699298107,0.3628,68773.0,68772.0,0.136651]
[1730699298491,0.3628,68773.0,68772.0,0.38293751]
[1730699298896,0.3129,68773.0,68772.0,0.81917751]
[1730699299096,0.002,68773.0,68772.0,0.81917751]
[1730699299396,0.002,68773.0,68772.0,0.90588508]
[1730699299593,0.002,68773.0,68772.0,0.81917751]
[1730699299791,0.002,68773.0,68772.0,1.17997751]
[1730699300408,0.002,68773.0,68772.0,1.17975144]
[1730699301108,0.02432931,68781.0,68780.0,0.072742]
[1730699301303,0.104,68796.0,68794.0,0.072727]
[1730699301512,0.36220001,68797.0,68794.0,0.1306082]
[1730699301803,0.36220001,68797.0,68795.0,0.0578812]
[1730699301804,0.072725,68796.0,68795.0,0.0578812]
[1730699302002,0.072725,68796.0,68794.0,0.1306082]
[1730699302204,0.072725,68796.0,68795.0,0.0578812]
[1730699303094,0.072725,68796.0,68794.0,0.072727]
[1730699303902,0.072725,68796.0,68795.0,0.072726]
[1730699304409,0.079725,68796.0,68795.0,0.072726]
[1730699304712,0.086725,68796.0,68795.0,0.072726]
[1730699306906,0.007,68796.0,68795.0,0.072726]
[1730699307108,0.007,68796.0,68795.0,0.074726]
[1730699307707,0.007,68796.0,68795.0,0.21455414]
[1730699307909,0.014,68796.0,68795.0,0.21255414]
[1730699308206,0.10396,68816.0,68806.0,0.072715]
[1730699308415,0.07489499,68807.0,68801.0,0.13982814]
[1730699308607,0.07489499,68807.0,68805.0,0.072716]
[1730699308806,0.07489499,68807.0,68806.0,0.033]
[1730699309202,0.07489499,68807.0,68806.0,0.105715]
[1730699309203,0.00218099,68807.0,68806.0,0.105715]
[1730699310014,0.01618099,68807.0,68806.0,0.467515]
[1730699310214,0.24378814,68824.0,68806.0,0.499315]
[1730699310405,0.3608,68828.0,68813.0,0.13982814]
[1730699310406,0.072699,68821.0,68813.0,0.13982814]
[1730699310906,0.072697,68823.0,68822.0,0.072697]
[1730699311106,0.072697,68823.0,68813.0,0.13982814]
[1730699311310,0.433492,68828.0,68823.0,0.072696]
[1730699311506,0.433492,68828.0,68812.0,0.3608]
[1730699311507,0.433492,68828.0,68825.0,0.072694]
[1730699311712,0.433492,68828.0,68812.0,0.3608]
[1730699311713,0.3608,68828.0,68827.0,0.21252114]
[1730699312210,0.3608,68828.0,68822.0,0.072698]
[1730699312511,0.13982814,68825.0,68823.0,0.072697]
[1730699312705,0.105693,68827.0,68819.0,0.3608]
[1730699312905,0.072687,68833.0,68830.0,0.07269]
[1730699313106,0.072687,68833.0,68831.0,0.072688]
[1730699314110,0.36394008,68837.0,68827.0,0.0322]
[1730699314310,0.36394008,68837.0,68836.0,0.072683]
[1730699314311,0.00218008,68837.0,68836.0,0.072683]
[1730699315509,0.00218008,68837.0,68836.0,0.21251114]
[1730699315808,0.3608,68845.0,68836.0,0.21251114]
[1730699316008,0.3608,68845.0,68844.0,0.21250314]
[1730699317010,0.3608,68859.0,68844.0,0.21250314]
[1730699317011,0.3608,68852.0,68844.0,0.64826314]
[1730699317316,0.3608,68852.0,68851.0,0.13982814]
[1730699317914,0.3608,68852.0,68851.0,0.21249514]
[1730699318312,0.3608,68859.0,68851.0,0.13982814]
[1730699318607,0.3608,68859.0,68857.0,0.07266]
[1730699319011,0.02438929,68863.0,68857.0,0.072661]
[1730699319212,0.02438929,68863.0,68856.0,0.13982814]
[1730699319213,0.3608,68865.0,68856.0,0.13982814]
[1730699319512,0.3608,68865.0,68864.0,0.072654]
[1730699320317,0.38518431,68865.0,68864.0,0.072654]
[1730699320517,0.072654,68864.0,68860.0,0.072658]
[1730699321114,0.072654,68864.0,68861.0,0.072656]
[1730699321723,0.072654,68864.0,68855.0,0.3608]
[1730699322021,0.017,68864.0,68863.0,0.072655]
[1730699323525,0.018,68864.0,68863.0,0.072655]
[1730699324124,0.007,68864.0,68863.0,0.001]
[1730699324421,0.014,68864.0,68863.0,0.074655]
[1730699324722,0.011,68864.0,68863.0,0.073655]
[1730699325124,0.008,68864.0,68863.0,0.072655]
[1730699331324,0.008,68864.0,68850.0,0.0333]
[1730699331325,0.008,68864.0,68852.0,0.13982814]
[1730699331526,0.008,68864.0,68857.0,0.072661]
[1730699331527,0.433459,68859.0,68857.0,0.072661]
[1730699331725,0.072662,68856.0,68851.0,0.072667]
[1730699332235,0.072664,68854.0,68851.0,0.072667]
[1730699332531,0.072664,68854.0,68852.0,0.072666]
[1730699332730,0.0304,68858.0,68851.0,0.13982814]
[1730699333032,0.0304,68858.0,68852.0,0.01]
[1730699333221,0.072663,68855.0,68852.0,0.021]
[1730699333727,0.072663,68855.0,68852.0,0.01]
[1730699334032,0.072663,68855.0,68851.0,0.028]